fUST/lending_fUST_20250709
["ID","MTS","AMOUNT","RATE_DAILY","PERIOD"]
[370613487,1752076154367,-246.57,0.00018789,2]
[370613488,1752076154388,-253.99245085,0.00018789,2]
[370613489,1752076154410,-616.76832,0.00018794,2]
[370613490,1752076154433,-13255.65149415,0.00018799,2]
[370613491,1752076154456,-3316.17941105,0.00018799,2]
[370613502,1752076205078,5042.82026218,0.00017475,2]
[370613560,1752076232646,-207.4,0.00018688,2]
[370613562,1752076232657,-3213.86101417,0.00018699,2]
[370613564,1752076232666,-754.14207845,0.00018699,2]
[370613566,1752076232675,-121.06899158,0.00018792,2]
[370613568,1752076232691,-1093.2064345,0.00018792,2]
[370613597,1752076232963,-884.26229337,0.00018792,2]
[370614142,1752076238540,-528.78757581,0.00018792,2]
[370614145,1752076238558,-340.47030623,0.00018792,2]
[370614148,1752076238577,-4764.50994214,0.00018792,2]
[370614151,1752076238593,-1200.0,0.00018793,2]
[370614153,1752076238607,-528.65856,0.00018794,2]
[370614156,1752076238623,-300.0,0.00018798,2]
[370614158,1752076238638,-300.0,0.00018798,2]
[370614161,1752076238655,-300.0,0.00018798,2]
[370614164,1752076238671,-300.0,0.00018798,2]
[370614166,1752076238688,-107.26384709,0.00018798,2]
[370614199,1752076238988,-192.73615291,0.00018798,2]
[370614201,1752076238998,-46683.82058895,0.00018799,2]
[370614203,1752076239008,-13255.65149415,0.00018799,2]
[370614205,1752076239018,-155.38637,0.00018816,7]
[370614207,1752076239028,-161.778658,0.00018816,7]
[370614209,1752076239038,-7732.3055436,0.00018864,2]
[370614211,1752076239048,-500.0,0.00018873,2]
[370614213,1752076239058,-500.0,0.00018873,2]
[370614215,1752076239067,-500.0,0.00018873,2]
[370614217,1752076239077,-500.0,0.00018873,2]
[370614219,1752076239086,-500.0,0.00018873,2]
[370614222,1752076239096,-500.0,0.00018873,2]
[370614223,1752076239106,-500.0,0.00018873,2]
[370614225,1752076239115,-500.0,0.00018873,2]
[370614228,1752076239126,-500.0,0.00018873,2]
[370614229,1752076239136,-258.91024273,0.00018873,2]
[370614231,1752076239146,-500.0,0.00018873,2]
[370614233,1752076239155,-500.0,0.00018873,2]
[370614236,1752076239165,-500.0,0.00018873,2]
[370614238,1752076239174,-500.0,0.00018873,2]
[370614240,1752076239184,-500.0,0.00018873,2]
[370614241,1752076239194,-500.0,0.00018873,2]
[370614243,1752076239203,-500.0,0.00018873,2]
[370614245,1752076239213,-500.0,0.00018873,2]
[370614247,1752076239223,-509.05024139,0.00018873,2]
[370614249,1752076239235,-428.02488701,0.00018873,2]
[370614251,1752076239244,-501.42420276,0.00018873,2]
[370614253,1752076239254,-495.41040403,0.00018873,2]
[370614255,1752076239264,-500.0,0.00018873,2]
[370614257,1752076239273,-500.0,0.00018873,2]
[370614259,1752076239283,-500.0,0.00018873,2]
[370614261,1752076239292,-500.0,0.00018873,2]
[370614263,1752076239302,-500.0,0.00018873,2]
[370614265,1752076239311,-160.26497813,0.00018873,2]
[370614267,1752076239320,-500.0,0.00018873,2]
[370614269,1752076239330,-500.0,0.00018873,2]
[370614271,1752076239339,-500.0,0.00018873,2]
[370614273,1752076239348,-500.0,0.00018873,2]
[370614275,1752076239358,-500.0,0.00018873,2]
[370614277,1752076239368,-500.0,0.00018873,2]
[370614279,1752076239378,-500.0,0.00018873,2]
[370614281,1752076239388,-500.0,0.00018873,2]
[370614283,1752076239397,-500.0,0.00018873,2]
[370614285,1752076239407,-478.18066296,0.00018873,2]
[370614288,1752076239417,-500.0,0.00018873,2]
[370614290,1752076239427,-500.0,0.00018873,2]
[370614292,1752076239436,-2356.9,0.00018878,3]
[370614293,1752076239445,-1376.05,0.00018878,3]
[370614295,1752076239454,-688.03,0.00018882,3]
[370614297,1752076239464,-344.01,0.00018882,3]
[370614299,1752076239474,-172.01,0.00018882,3]
[370614301,1752076239483,-516.05,0.00018882,3]
[370614303,1752076239493,-300.0,0.00018883,2]
[370614306,1752076239515,-500.0,0.00018883,2]
[370614309,1752076239528,-300.0,0.00018883,2]
[370614311,1752076239539,-500.0,0.00018883,2]
[370614313,1752076239549,-500.0,0.00018883,2]
[370614315,1752076239559,-300.0,0.00018883,2]
[370614317,1752076239569,-500.0,0.00018883,2]
[370614319,1752076239579,-300.0,0.00018883,2]
[370614321,1752076239589,-500.0,0.00018883,2]
[370614323,1752076239599,-300.0,0.00018883,2]
[370614325,1752076239608,-300.0,0.00018883,2]
[370614327,1752076239618,-300.0,0.00018883,2]
[370614329,1752076239628,-200.0,0.00018883,2]
[370614331,1752076239639,-500.0,0.00018891,2]
[370614333,1752076239649,-500.0,0.00018891,2]
[370614335,1752076239659,-500.0,0.00018891,2]
[370614337,1752076239668,-500.0,0.00018891,2]
[370614339,1752076239679,-500.0,0.00018891,2]
[370614341,1752076239692,-500.0,0.00018891,2]
[370614343,1752076239703,-500.0,0.00018891,2]
[370614346,1752076239714,-428.69847418,0.00018891,2]
[370614348,1752076239727,-214.58673731,0.00018891,2]
[370614350,1752076239740,-176.59181944,0.00018891,2]
[370614352,1752076239753,-500.0,0.00018891,2]
[370614354,1752076239767,-500.0,0.00018891,2]
[370614356,1752076239777,-500.0,0.00018891,2]
[370614358,1752076239787,-500.0,0.00018891,2]
[370614360,1752076239797,-246.15118607,0.00018891,2]
[370614362,1752076239807,-500.0,0.00018891,2]
[370614364,1752076239816,-846.5099645,0.00018891,2]
[370614366,1752076239826,-500.0,0.00018891,2]
[370614368,1752076239836,-500.0,0.00018891,2]
[370614370,1752076239846,-500.0,0.00018891,2]
[370614372,1752076239855,-500.0,0.00018891,2]
[370614374,1752076239867,-500.0,0.00018891,2]
[370614376,1752076239877,-500.0,0.00018891,2]
[370614378,1752076239888,-178.45566797,0.00018891,2]
[370614380,1752076239898,-500.0,0.00018891,2]
[370614382,1752076239908,-500.0,0.00018891,2]
[370614384,1752076239918,-500.0,0.00018891,2]
[370614386,1752076239929,-500.0,0.00018891,2]
[370614388,1752076239938,-500.0,0.00018891,2]
[370614390,1752076239948,-418.32274917,0.00018891,2]
[370614392,1752076239959,-846.5099645,0.00018891,2]
[370614394,1752076239969,-500.0,0.00018891,2]
[370614396,1752076239979,-500.0,0.00018891,2]
[370614399,1752076239990,-500.0,0.00018891,2]
[370614401,1752076240000,-500.0,0.00018891,2]
[370614403,1752076240009,-500.0,0.00018891,2]
[370614405,1752076240020,-500.0,0.00018891,2]
[370614407,1752076240030,-500.0,0.00018891,2]
[370614409,1752076240040,-500.0,0.00018891,2]
[370614411,1752076240050,-500.0,0.00018891,2]
[370614413,1752076240061,-846.5099645,0.00018891,2]
[370614415,1752076240072,-498.47652277,0.00018891,2]
[370614417,1752076240082,-500.0,0.00018891,2]
[370614419,1752076240092,-500.0,0.00018891,2]
[370614421,1752076240103,-500.0,0.00018891,2]
[370614423,1752076240112,-846.5099645,0.00018891,2]
[370614425,1752076240123,-500.0,0.00018891,2]
[370614427,1752076240134,-500.0,0.00018891,2]
[370614429,1752076240144,-500.0,0.00018891,2]
[370614431,1752076240154,-846.5099645,0.00018891,2]
[370614433,1752076240164,-500.0,0.00018891,2]
[370614435,1752076240174,-500.0,0.00018891,2]
[370614437,1752076240184,-331.28041182,0.00018891,2]
[370614439,1752076240194,-500.0,0.00018891,2]
[370614441,1752076240203,-846.5099645,0.00018891,2]
[370614443,1752076240213,-500.0,0.00018891,2]
[370614445,1752076240223,-846.5099645,0.00018891,2]
[370614447,1752076240232,-500.0,0.00018891,2]
[370614449,1752076240242,-430.0,0.00018891,2]
[370614451,1752076240253,-846.5099645,0.00018891,2]
[370614453,1752076240263,-846.5099645,0.00018891,2]
[370614455,1752076240273,-500.0,0.00018891,2]
[370614457,1752076240284,-500.0,0.00018891,2]
[370614459,1752076240294,-846.5099645,0.00018891,2]
[370614461,1752076240303,-500.0,0.00018891,2]
[370614463,1752076240314,-500.0,0.00018891,2]
[370614465,1752076240323,-846.5099645,0.00018891,2]
[370614468,1752076240334,-846.5099645,0.00018891,2]
[370614469,1752076240343,-846.5099645,0.00018891,2]
[370614472,1752076240354,-846.5099645,0.00018891,2]
[370614474,1752076240364,-846.5099645,0.00018891,2]
[370614476,1752076240374,-846.5099645,0.00018891,2]
[370614478,1752076240384,-846.5099645,0.00018891,2]
[370614480,1752076240394,-846.5099645,0.00018891,2]
[370614482,1752076240404,-846.5099645,0.00018891,2]
[370614484,1752076240414,-846.5099645,0.00018891,2]
[370614486,1752076240424,-846.5099645,0.00018891,2]
[370614488,1752076240434,-846.5099645,0.00018891,2]
[370614490,1752076240444,-846.5099645,0.00018891,2]
[370614492,1752076240455,-846.5099645,0.00018891,2]
[370614494,1752076240464,-846.5099645,0.00018891,2]
[370614496,1752076240474,-846.5099645,0.00018891,2]
[370614498,1752076240484,-846.5099645,0.00018891,2]
[370614500,1752076240494,-151.155561,0.00018892,2]
[370614502,1752076240504,-151.0,0.00018892,2]
[370614504,1752076240514,-151.0,0.00018892,2]
[370614506,1752076240524,-153.822867,0.00018892,2]
[370614508,1752076240534,-151.0,0.00018892,2]
[370614510,1752076240547,-151.0,0.00018892,2]
[370614512,1752076240556,-151.0,0.00018892,2]
[370614514,1752076240566,-151.0,0.00018892,2]
[370614516,1752076240576,-151.0,0.00018893,2]
[370614518,1752076240585,-179.745313,0.00018893,2]
[370614521,1752076240599,-151.0,0.00018893,2]
[370614523,1752076240610,-151.0,0.00018893,2]
[370614525,1752076240620,-151.0,0.00018893,2]
[370614527,1752076240631,-151.0,0.00018893,2]
[370614543,1752076240776,-151.0,0.00018893,2]
[370614545,1752076240789,-151.0,0.00018893,2]
[370614547,1752076240799,-151.0,0.00018893,2]
[370614549,1752076240810,-151.0,0.00018893,2]
[370614551,1752076240819,-151.0,0.00018894,2]
[370614553,1752076240829,-282.045458,0.00018894,2]
[370614555,1752076240838,-249.097854,0.00018894,2]
[370614557,1752076240849,-151.0,0.00018894,2]
[370614559,1752076240859,-151.0,0.00018894,2]
[370614561,1752076240868,-151.0,0.00018894,2]
[370614563,1752076240877,-151.0,0.00018894,2]
[370614565,1752076240886,-151.0,0.00018894,2]
[370614567,1752076240896,-152.426959,0.00018894,2]
[370614569,1752076240907,-151.0,0.00018894,2]
[370614571,1752076240917,-151.0,0.00018894,2]
[370614573,1752076240926,-151.0,0.00018894,2]
[370614575,1752076240935,-151.0,0.00018894,2]
[370614577,1752076240944,-151.0,0.00018894,2]
[370614579,1752076240954,-151.0,0.00018895,2]
[370614581,1752076240963,-260.007,0.00018895,2]
[370614583,1752076240972,-151.0,0.00018895,2]
[370614585,1752076240982,-151.0,0.00018895,2]
[370614587,1752076240993,-151.0,0.00018895,2]
[370614589,1752076241003,-151.0,0.00018895,2]
[370614591,1752076241012,-151.0,0.00018895,2]
[370614593,1752076241021,-151.0,0.00018895,2]
[370614595,1752076241031,-151.0,0.00018895,2]
[370614597,1752076241040,-151.0,0.00018895,2]
[370614599,1752076241050,-151.0,0.00018895,2]
[370614601,1752076241059,-151.0,0.00018895,2]
[370614603,1752076241069,-151.0,0.00018895,2]
[370614605,1752076241078,-151.0,0.00018895,2]
[370614607,1752076241088,-373.036634,0.00018895,2]
[370614609,1752076241097,-373.036634,0.00018895,2]
[370614611,1752076241107,-373.036634,0.00018895,2]
[370614613,1752076241116,-373.036634,0.00018895,2]
[370614615,1752076241125,-373.036634,0.00018895,2]
[370614617,1752076241136,-373.036634,0.00018895,2]
[370614619,1752076241145,-373.036634,0.00018895,2]
[370614621,1752076241155,-373.036634,0.00018895,2]
[370614623,1752076241165,-373.036634,0.00018895,2]
[370614625,1752076241174,-373.036634,0.00018895,2]
[370614627,1752076241183,-151.0,0.00018896,2]
[370614629,1752076241194,-151.0,0.00018896,2]
[370614631,1752076241203,-207.754147,0.00018896,2]
[370614633,1752076241214,-151.0,0.00018896,2]
[370614635,1752076241223,-151.0,0.00018896,2]
[370614637,1752076241233,-151.0,0.00018896,2]
[370614639,1752076241242,-151.0,0.00018896,2]
[370614641,1752076241252,-151.0,0.00018896,2]
[370614643,1752076241261,-151.0,0.00018896,2]
[370614645,1752076241270,-151.0,0.00018896,2]
[370614647,1752076241279,-155.323383,0.00018896,2]
[370614649,1752076241288,-151.0,0.00018896,2]
[370614651,1752076241298,-151.0,0.00018896,2]
[370614653,1752076241307,-395.655355,0.00018896,2]
[370614655,1752076241317,-395.655355,0.00018896,2]
[370614657,1752076241327,-395.655355,0.00018896,2]
[370614659,1752076241336,-395.655355,0.00018896,2]
[370614661,1752076241345,-612.704613,0.00018896,2]
[370614663,1752076241354,-612.704613,0.00018896,2]
[370614665,1752076241363,-612.704613,0.00018896,2]
[370614667,1752076241373,-612.704613,0.00018896,2]
[370614669,1752076241383,-151.0,0.00018896,2]
[370614671,1752076241393,-151.0,0.00018896,2]
[370614673,1752076241402,-331.678733,0.00018896,2]
[370614675,1752076241411,-331.678733,0.00018896,2]
[370614677,1752076241421,-331.678733,0.00018896,2]
[370614679,1752076241430,-331.678733,0.00018896,2]
[370614680,1752076241439,-331.678733,0.00018896,2]
[370614683,1752076241448,-331.678733,0.00018896,2]
[370614684,1752076241458,-331.678733,0.00018896,2]
[370614686,1752076241467,-331.678733,0.00018896,2]
[370614689,1752076241477,-331.678733,0.00018896,2]
[370614690,1752076241486,-331.678733,0.00018896,2]
[370614693,1752076241495,-151.0,0.00018896,2]
[370614695,1752076241505,-151.0,0.00018896,2]
[370614697,1752076241514,-151.0,0.00018896,2]
[370614698,1752076241523,-151.0,0.00018896,2]
[370614701,1752076241533,-151.0,0.00018896,2]
[370614702,1752076241542,-443.441476,0.00018896,2]
[370614704,1752076241551,-443.441476,0.00018896,2]
[370614707,1752076241561,-443.441476,0.00018896,2]
[370614709,1752076241571,-443.441476,0.00018896,2]
[370614711,1752076241580,-443.441476,0.00018896,2]
[370614713,1752076241589,-443.441476,0.00018896,2]
[370614714,1752076241599,-443.441476,0.00018896,2]
[370614716,1752076241608,-443.441476,0.00018896,2]
[370614718,1752076241618,-443.441476,0.00018896,2]
[370614720,1752076241629,-443.441476,0.00018896,2]
[370614722,1752076241639,-151.0,0.00018896,2]
[370614724,1752076241649,-151.0,0.00018896,2]
[370614726,1752076241658,-151.575806,0.00018897,2]
[370614728,1752076241668,-151.185124,0.00018897,2]
[370614730,1752076241677,-151.0,0.00018897,2]
[370614732,1752076241690,-151.0,0.00018897,2]
[370614735,1752076241700,-151.0,0.00018897,2]
[370614736,1752076241710,-151.0,0.00018897,2]
[370614738,1752076241719,-154.295007,0.00018897,2]
[370614739,1752076241729,-151.0,0.00018897,2]
[370614741,1752076241739,-151.352149,0.00018897,2]
[370614742,1752076241747,-547.379401,0.00018897,2]
[370614744,1752076241758,-547.379401,0.00018897,2]
[370614746,1752076241769,-547.379401,0.00018897,2]
[370614748,1752076241778,-547.379401,0.00018897,2]
[370614750,1752076241788,-547.379401,0.00018897,2]
[370614752,1752076241797,-547.379401,0.00018897,2]
[370614754,1752076241807,-151.0,0.00018897,2]
[370614756,1752076241816,-151.0,0.00018897,2]
[370614758,1752076241825,-151.0,0.00018897,2]
[370614760,1752076241835,-152.770871,0.00018897,2]
[370614762,1752076241844,-186.713012,0.00018897,2]
[370614764,1752076241854,-151.0,0.00018897,2]
[370614766,1752076241864,-373.036634,0.00018897,2]
[370614767,1752076241874,-373.036634,0.00018897,2]
[370614769,1752076241884,-500.0,0.00018898,2]
[370614771,1752076241893,-633.19854369,0.00018898,2]
[370614773,1752076241902,-151.0,0.00018898,2]
[370614775,1752076241912,-151.0,0.00018898,2]
[370614777,1752076241922,-151.0,0.00018898,2]
[370614779,1752076241931,-154.772765,0.00018898,2]
[370614781,1752076241942,-221.111941,0.00018898,2]
[370614783,1752076241951,-15810.37596883,0.00018899,2]
[370614785,1752076241960,-8490.95605191,0.00018899,2]
[370614787,1752076241970,-370000.0,0.00018899,2]
[370614788,1752076241980,-151.0,0.00018899,2]
[370614790,1752076241990,-151.0,0.00018899,2]
[370614792,1752076241999,-151.0,0.00018899,2]
[370614794,1752076242008,-151.0,0.00018899,2]
[370614796,1752076242018,-547.379401,0.00018899,2]
[370614798,1752076242028,-547.379401,0.00018899,2]
[370614800,1752076242038,-151.0,0.00018899,2]
[370614802,1752076242050,-151.0,0.00018899,2]
[370614804,1752076242060,-151.0,0.00018899,2]
[370614806,1752076242070,-395.655355,0.00018899,2]
[370614808,1752076242079,-395.655355,0.00018899,2]
[370614810,1752076242089,-395.655355,0.00018899,2]
[370614812,1752076242098,-395.655355,0.00018899,2]
[370614813,1752076242107,-151.0,0.00018899,2]
[370614815,1752076242116,-151.0,0.00018899,2]
[370614817,1752076242126,-612.704613,0.00018899,2]
[370614819,1752076242135,-612.704613,0.00018899,2]
[370614821,1752076242144,-612.704613,0.00018899,2]
[370614823,1752076242154,-612.704613,0.00018899,2]
[370614825,1752076242163,-331.678733,0.00018899,2]
[370614826,1752076242173,-331.678733,0.00018899,2]
[370614828,1752076242182,-331.678733,0.00018899,2]
[370614830,1752076242192,-331.678733,0.00018899,2]
[370614832,1752076242201,-373.036634,0.00018899,2]
[370614834,1752076242210,-373.036634,0.00018899,2]
[370614836,1752076242219,-373.036634,0.00018899,2]
[370614837,1752076242229,-373.036634,0.00018899,2]
[370614839,1752076242239,-151.0,0.00018899,2]
[370614841,1752076242248,-151.0,0.00018899,2]
[370614843,1752076242258,-151.0,0.00018899,2]
[370614845,1752076242269,-260.15103,0.00018899,2]
[370614847,1752076242278,-443.441476,0.00018899,2]
[370614849,1752076242288,-443.441476,0.00018899,2]
[370614851,1752076242297,-443.441476,0.00018899,2]
[370614861,1752076242399,-443.441476,0.00018899,2]
[370614863,1752076242408,-269.486404,0.00018899,2]
[370614865,1752076242418,-151.0,0.00018899,2]
[370614867,1752076242427,-152.375359,0.00018899,2]
[370614869,1752076242436,-151.0,0.00018899,2]
[370614870,1752076242446,-151.0,0.00018899,2]
[370614872,1752076242456,-198.378695,0.00018899,2]
[370614874,1752076242466,-151.0,0.000189,2]
[370614876,1752076242475,-151.0,0.000189,2]
[370614878,1752076242484,-151.0,0.000189,2]
[370614880,1752076242494,-151.0,0.000189,2]
[370614882,1752076242504,-151.0,0.000189,2]
[370614884,1752076242514,-151.0,0.000189,2]
[370614886,1752076242524,-7732.3055436,0.00018935,2]
[370614888,1752076242533,-339.0,0.00018943,2]
[370614890,1752076242543,-2900.0,0.00018972,2]
[370614891,1752076242552,-8551.33671167,0.00018986,2]
[370614893,1752076242562,-484.50802652,0.00019,2]
[370614895,1752076242572,-151.0,0.00019,2]
[370614897,1752076242582,-151.0,0.00019,2]
[370614899,1752076242593,-151.0,0.00019,2]
[370614901,1752076242603,-5454.6538683,0.00019,2]
[370614903,1752076242612,-151.0,0.00019,2]
[370614905,1752076242622,-151.0,0.00019,2]
[370614907,1752076242631,-151.0,0.00019,2]
[370614908,1752076242642,-151.0,0.00019,2]
[370614910,1752076242651,-373.036634,0.00019,2]
[370614912,1752076242661,-373.036634,0.00019,2]
[370614914,1752076242671,-7732.3055436,0.00019007,2]
[370614916,1752076242680,-331.678733,0.00019007,2]
[370614918,1752076242694,-331.678733,0.00019007,2]
[370614920,1752076242704,-177.027461,0.00019008,2]
[370614922,1752076242713,-248.151425,0.00019027,2]
[370614924,1752076242723,-151.0,0.00019027,2]
[370614926,1752076242733,-395.655355,0.00019027,2]
[370614928,1752076242743,-395.655355,0.00019027,2]
[370614929,1752076242752,-612.704613,0.00019027,2]
[370614931,1752076242761,-612.704613,0.00019027,2]
[370614933,1752076242771,-151.0,0.00019027,2]
[370614935,1752076242780,-547.379401,0.00019077,2]
[370614939,1752076242790,-547.379401,0.00019077,2]
[370614942,1752076242799,-151.0,0.00019077,2]
[370614944,1752076242810,-151.0,0.00019078,2]
[370614946,1752076242819,-169.54060718,0.00019078,2]
[370614948,1752076242830,-7732.3055436,0.00019078,2]
[370614950,1752076242839,-649.0,0.00019097,2]
[370614952,1752076242848,-151.0,0.000191,2]
[370614953,1752076242858,-151.0,0.000191,2]
[370614955,1752076242868,-151.0,0.000191,2]
[370614957,1752076242877,-151.0,0.000191,2]
[370614959,1752076242888,-151.0,0.000191,2]
[370614961,1752076242897,-151.0,0.000191,2]
[370614963,1752076242907,-151.0,0.000191,2]
[370614965,1752076242917,-151.0,0.000191,2]
[370614967,1752076242927,-151.0,0.000191,2]
[370614969,1752076242937,-151.0,0.000191,2]
[370614971,1752076242946,-151.0,0.000191,2]
[370614973,1752076242956,-3972.72913075,0.000191,2]
[370614975,1752076242965,-151.0,0.00019124,2]
[370614977,1752076242974,-395.655355,0.00019124,2]
[370614978,1752076242984,-395.655355,0.00019124,2]
[370614980,1752076242994,-151.0,0.00019124,2]
[370614982,1752076243004,-612.704613,0.00019124,2]
[370614984,1752076243013,-612.704613,0.00019124,2]
[370614986,1752076243023,-331.678733,0.00019124,2]
[370614988,1752076243033,-331.678733,0.00019124,2]
[370614990,1752076243042,-373.036634,0.00019124,2]
[370614992,1752076243052,-373.036638,0.00019124,2]
[370614993,1752076243061,-151.0,0.00019124,2]
[370614995,1752076243070,-3972.72913075,0.00019141,2]
[370614997,1752076243080,-649.0,0.0001915,2]
[370614999,1752076243089,-425.0,0.00019155,2]
[370615001,1752076243099,-151.0,0.00019161,2]
[370615003,1752076243109,-547.379401,0.00019161,2]
[370615005,1752076243119,-547.379401,0.00019161,2]
[370615007,1752076243129,-547.379401,0.00019161,2]
[370615009,1752076243139,-547.379401,0.00019161,2]
[370615011,1752076243149,-151.0,0.00019161,2]
[370615013,1752076243159,-151.0,0.00019161,2]
[370615015,1752076243167,-649.0,0.00019169,2]
[370615016,1752076243177,-500.0,0.00019172,2]
[370615018,1752076243186,-500.0,0.00019173,2]
[370615020,1752076243196,-500.0,0.00019173,2]
[370615022,1752076243205,-500.0,0.00019173,2]
[370615024,1752076243214,-569.41013617,0.00019173,2]
[370615026,1752076243224,-500.0,0.00019173,2]
[370615028,1752076243233,-500.0,0.00019173,2]
[370615030,1752076243242,-500.0,0.00019173,2]
[370615032,1752076243252,-500.0,0.00019173,2]
[370615034,1752076243261,-500.0,0.00019173,2]
[370615036,1752076243271,-500.0,0.00019173,2]
[370615038,1752076243280,-500.95899928,0.00019173,2]
[370615040,1752076243290,-500.0,0.00019173,2]
[370615041,1752076243299,-500.0,0.00019173,2]
[370615043,1752076243308,-500.0,0.00019173,2]
[370615045,1752076243318,-500.0,0.00019173,2]
[370615047,1752076243327,-160.07738835,0.00019173,2]
[370615049,1752076243336,-500.0,0.00019173,2]
[370615051,1752076243346,-500.0,0.00019173,2]
[370615053,1752076243355,-500.65520771,0.00019173,2]
[370615055,1752076243365,-500.0,0.00019173,2]
[370615057,1752076243374,-500.0,0.00019173,2]
[370615059,1752076243383,-258.80150459,0.00019173,2]
[370615061,1752076243393,-501.25053482,0.00019173,2]
[370615063,1752076243403,-500.0,0.00019173,2]
[370615064,1752076243412,-500.0,0.00019173,2]
[370615066,1752076243422,-500.0,0.00019173,2]
[370615068,1752076243432,-500.235184,0.00019173,2]
[370615070,1752076243442,-500.0,0.00019173,2]
[370615072,1752076243452,-500.0,0.00019173,2]
[370615074,1752076243462,-500.0,0.00019173,2]
[370615076,1752076243471,-508.64317443,0.00019173,2]
[370615078,1752076243481,-500.46494259,0.00019173,2]
[370615080,1752076243490,-500.0,0.00019173,2]
[370615082,1752076243500,-500.48179399,0.00019173,2]
[370615084,1752076243510,-500.0,0.00019173,2]
[370615086,1752076243519,-600.0,0.00019173,2]
[370615088,1752076243528,-500.0,0.00019173,2]
[370615090,1752076243539,-500.0,0.00019173,2]
[370615091,1752076243548,-500.0,0.00019173,2]
[370615093,1752076243559,-501.8141145,0.00019173,2]
[370615095,1752076243568,-500.0,0.00019173,2]
[370615098,1752076243578,-500.0,0.00019173,2]
[370615101,1752076243587,-151.0,0.00019173,2]
[370615103,1752076243597,-395.655355,0.00019173,2]
[370615105,1752076243606,-395.655355,0.00019173,2]
[370615108,1752076243615,-612.704613,0.00019173,2]
[370615110,1752076243625,-612.704613,0.00019173,2]
[370615112,1752076243635,-331.678733,0.00019173,2]
[370615114,1752076243644,-331.67874,0.00019173,2]
[370615115,1752076243655,-153.792341,0.00019173,2]
[370615117,1752076243664,-151.456877,0.00019174,2]
[370615119,1752076243673,-215.174566,0.00019174,2]
[370615121,1752076243683,-215.174566,0.00019174,2]
[370615123,1752076243695,-151.0,0.00019174,2]
[370615125,1752076243704,-151.0,0.00019174,2]
[370615127,1752076243713,-547.379401,0.00019174,2]
[370615129,1752076243723,-547.379401,0.00019174,2]
[370615131,1752076243733,-151.0,0.00019174,2]
[370615133,1752076243744,-1917.92,0.00019175,2]
[370615134,1752076243753,-1917.92,0.00019175,2]
[370615136,1752076243764,-1917.92,0.00019175,2]
[370615138,1752076243775,-1917.92,0.00019175,2]
[370615140,1752076243786,-1917.92,0.00019175,2]
[370615142,1752076243796,-1917.92,0.00019175,2]
[370615144,1752076243807,-1917.92,0.00019175,2]
[370615146,1752076243817,-215.174566,0.00019176,2]
[370615157,1752076243917,-215.174566,0.00019176,2]
[370615159,1752076243927,-215.174566,0.00019176,2]
[370615160,1752076243937,-215.174566,0.00019176,2]
[370615162,1752076243946,-215.174566,0.00019176,2]
[370615164,1752076243956,-215.174566,0.00019176,2]
[370615166,1752076243966,-215.174566,0.00019176,2]
[370615168,1752076243975,-215.174566,0.00019176,2]
[370615170,1752076243985,-151.0,0.00019176,2]
[370615171,1752076243995,-151.0,0.00019176,2]
[370615172,1752076244004,-151.0,0.00019176,2]